fUSD/lending_fUSD_20240225
["ID","MTS","AMOUNT","RATE_DAILY","PERIOD"]
[315136445,1708877446065,-15316.08842384,0.00024,30]
[315136446,1708877446076,-3048.08400001,0.00024,30]
[315136447,1708877446087,-377.78626633,0.00024,30]
[315136448,1708877446240,-260348.04615256,0.00024,30]
[315136452,1708877462207,220.59,0.00023407,10]
[315136455,1708877577658,207.05,0.00023033,2]
[315136457,1708877595478,545.03,0.00021105,2]
[315136458,1708877595701,545.03,0.00023369,2]
[315136459,1708877616643,156.0,0.00023449,2]
[315136460,1708877621866,154.0,0.00023449,2]
[315136461,1708877623680,371.0,0.00023449,2]
[315136463,1708877690965,600.65,0.00023,2]
[315136464,1708877691114,500.0,0.00023,2]
[315136465,1708877691927,500.0,0.00023,2]
[315136466,1708877692756,500.0,0.00023,2]
[315136467,1708877693575,500.0,0.00023,2]
[315136468,1708877694233,260.27674426,0.00023,2]
[315136469,1708877694905,500.0,0.00023,2]
[315136470,1708877695802,500.0,0.00023,2]
[315136471,1708877696596,500.0,0.00023,2]
[315136472,1708877697435,410.18,0.00023,2]
[315136474,1708877778506,164.56,0.00022931,2]
[315136476,1708877845976,210.57,0.00023109,2]
[315136477,1708877849259,179.3,0.00022944,2]
[315136478,1708877853524,500.0,0.00022952,2]
[315136479,1708877869194,177.83,0.00023,2]
[315136480,1708877884877,204.0,0.00022916,2]
[315136481,1708877890522,560.68,0.00022904,2]
[315136483,1708877894655,9660.15,0.00022904,2]
[315136484,1708877906397,220.59,0.00022899,10]
[315136485,1708878026669,172.54,0.00022875,2]
[315136486,1708878092435,490.52,0.00020983,2]
[315136487,1708878092639,490.52,0.00023247,2]
[315136490,1708878233435,161.33,0.00022877,2]
[315136492,1708878278586,152.44858673,0.00023497,2]
[315136494,1708878346635,551.45,0.00022834,2]
[315136495,1708878348182,210.57,0.00023005,2]
[315136496,1708878499969,177.83,0.00023,2]
[315136497,1708878550730,172.54,0.00022828,2]
[315136498,1708878584039,-1232.68084989,0.00023503,2]
[315136499,1708878584061,-529.72754677,0.00023504,30]
[315136500,1708878584080,-1213.04868299,0.00023505,2]
[315136501,1708878584100,-150.0,0.0002351,2]
[315136502,1708878584120,-152.44858673,0.00023537,2]
[315136503,1708878584140,-1468.92281057,0.00023546,2]
[315136504,1708878584160,-355.14,0.00023548,2]
[315136505,1708878584181,-152.44858673,0.00023578,2]
[315136506,1708878584200,-2905.87421259,0.000236,2]
[315136507,1708878584219,-152.44858673,0.00023618,2]
[315136508,1708878584238,-499.99,0.00023618,2]
[315136509,1708878584257,-152.44858673,0.00023658,2]
[315136510,1708878584277,-150.0,0.00023698,2]
[315136511,1708878584295,-300.0,0.00023698,2]
[315136512,1708878584313,-300.0,0.00023698,2]
[315136513,1708878584333,-152.44858673,0.00023699,2]
[315136514,1708878584351,-1762.93,0.00023699,2]
[315136515,1708878605041,204.0,0.00022868,2]
[315136517,1708878632035,-152.44858673,0.00023739,2]
[315136518,1708878632046,-150.0,0.00023742,2]
[315136519,1708878632057,-157.55141327,0.00023753,2]
[315136520,1708878632094,-1342.44858673,0.00023753,2]
[315136521,1708878632103,-150.0,0.00023755,2]
[315136522,1708878632112,-150.0,0.00023771,2]
[315136523,1708878632121,-152.44858673,0.00023779,2]
[315136524,1708878632130,-208.8038,0.0002378,2]
[315136525,1708878632140,-277.39,0.0002379,2]
[315136526,1708878632150,-150.0,0.00023799,2]
[315136527,1708878632159,-300.0,0.00023799,2]
[315136528,1708878632169,-270.9234,0.000238,2]
[315136529,1708878632178,-555.19058499,0.000238,2]
[315136530,1708878632189,-1135.00483645,0.000238,2]
[315136531,1708878632199,-83.51755318,0.00023807,2]
[315136532,1708878632213,-116.48244682,0.00023807,2]
[315136533,1708878632222,-401.15654718,0.00023807,2]
[315136534,1708878632243,-300.0,0.00023807,2]
[315136535,1708878632255,-98.84345282,0.00023807,2]
[315136536,1708878632265,-200.0,0.00023807,2]
[315136537,1708878632275,-200.0,0.00023807,2]
[315136538,1708878632285,-500.0,0.00023807,2]
[315136539,1708878632295,-200.0,0.00023807,2]
[315136540,1708878632306,-1690.19542143,0.00023811,2]
[315136541,1708878632315,-152.44858673,0.00023819,2]
[315136542,1708878632324,-1690.19542143,0.00023822,2]
[315136543,1708878632333,-1690.19542143,0.00023833,2]
[315136544,1708878632343,-150.0,0.00023838,2]
[315136545,1708878632353,-8498.33311776,0.00023844,2]
[315136546,1708878632363,-1690.19542143,0.00023844,2]
[315136547,1708878632372,-8498.33311776,0.00023856,2]
[315136548,1708878632382,-1690.19542143,0.00023856,2]
[315136549,1708878632391,-152.44858673,0.0002386,2]
[315136550,1708878632401,-8498.33311776,0.00023867,2]
[315136551,1708878632410,-1690.19542143,0.00023867,2]
[315136552,1708878632419,-150.0,0.00023877,2]
[315136553,1708878632428,-8498.33311776,0.00023878,2]
[315136554,1708878632437,-1690.19542143,0.00023878,2]
[315136555,1708878632447,-1500.0,0.00023879,2]
[315136556,1708878632457,-8498.33311776,0.00023889,2]
[315136557,1708878632466,-1690.19542143,0.00023889,2]
[315136558,1708878632476,-365.96274814,0.00023899,2]
[315136559,1708878632486,-1000.0,0.00023899,2]
[315136560,1708878632495,-365.96274814,0.00023899,2]
[315136561,1708878632505,-365.96274814,0.00023899,2]
[315136562,1708878632514,-365.96274814,0.000239,2]
[315136563,1708878632524,-78857.14907795,0.000239,2]
[315136564,1708878632536,-510.85645053,0.000239,2]
[315136565,1708878632557,-1727.96399541,0.000239,2]
[315136566,1708878632568,-808.40388219,0.000239,2]
[315136567,1708878632579,-294.88375833,0.000239,2]
[315136572,1708878638006,-515.85435007,0.000239,2]
[315136573,1708878638020,-3020.66396125,0.000239,2]
[315136574,1708878638033,-20560.22982427,0.000239,2]
[315136575,1708878638044,-8705.7005162,0.000239,2]
[315136576,1708878638059,-20566.9784,0.000239,2]
[315136577,1708878638070,-433.54848528,0.000239,5]
[315136578,1708878638094,-358.33485164,0.000239,5]
[315136579,1708878638110,-208.11666308,0.000239,5]
[315136580,1708878638121,-152.44858673,0.000239,2]
[315136581,1708878638135,-1440.72013019,0.000239,2]
[315136582,1708878638151,-3138.36526162,0.000239,2]
[315136583,1708878638163,-848.26710872,0.000239,2]
[315136584,1708878638202,-1928.33481144,0.000239,2]
[315136585,1708878638221,-706.17412331,0.000239,2]
[315136586,1708878638238,-436.47168248,0.000239,2]
[315136587,1708878638250,-365.96274814,0.000239,2]
[315136588,1708878638262,-413.59603984,0.000239,2]
[315136589,1708878638274,-69.03552954,0.000239,2]
[315136590,1708878638319,-930.96447046,0.000239,2]
[315136591,1708878638332,-1472.70442492,0.000239,2]
[315136593,1708878638347,-217.49099651,0.000239,2]
[315136595,1708878638360,-573.23374901,0.000239,2]
[315136597,1708878638372,-13114.23920204,0.00023936,2]
[315136599,1708878638384,-1882.8830735,0.00023989,3]
[315136602,1708878638396,-9420.84397894,0.00023996,2]
[315136624,1708878640625,-6867.4003728,0.00023996,2]
[315136625,1708878640638,-825.08704032,0.00023996,2]
[315136626,1708878640651,-30576.30000002,0.00023996,2]
[315136627,1708878640666,-70403.58373744,0.00023996,2]
[315136628,1708878640677,-1925.55864704,0.00023998,2]
[315136629,1708878640688,-403.94045185,0.00023998,2]
[315136630,1708878640700,-529.72754677,0.00023998,30]
[315136631,1708878640710,-642.22672279,0.00023999,2]
[315136632,1708878640722,-331.80500866,0.00023999,2]
[315136633,1708878640733,-267.27780001,0.00024,2]
[315136634,1708878640744,-398491.11922954,0.00024,4]
[315136635,1708878640755,-13885.04230608,0.00024,30]
[315136636,1708878640769,-33228.06661815,0.00024,30]
[315136637,1708878640793,-3278.71351168,0.00024,30]
[315136638,1708878640808,-553.17327506,0.00024,30]
[315136639,1708878640836,-910859.61520979,0.00024,30]
[315136640,1708878640849,-776.99749995,0.00024,30]
[315136641,1708878640862,-5334.569598,0.00024,30]
[315136642,1708878640875,-3067.73215805,0.00024,30]
[315136643,1708878641462,-93145.15899167,0.00024,30]
[315136644,1708878641475,-62408.65549203,0.00024,30]
[315136647,1708878641600,-5918.56096845,0.00024,30]
[315136655,1708878643113,-893086.26109253,0.00024,30]
[315136656,1708878643279,-5971.87100001,0.00024,30]
[315136657,1708878643292,-2401.90733717,0.00024,30]
[315136658,1708878643306,-3138.07395637,0.00024,30]
[315136659,1708878643332,-1639.82339676,0.00024,30]
[315136666,1708878646070,-618.09028866,0.00024,30]
[315136667,1708878646081,-715.93952825,0.00024,30]
[315136668,1708878646182,-2658.75,0.00024,30]
[315136669,1708878646352,-1400.0,0.00024,30]
[315136674,1708878656532,6725.44296354,0.00023407,2]
[315136675,1708878656553,2164.68193646,0.00023407,2]
[315136676,1708878659126,441.46,0.00021497,2]
[315136677,1708878668561,250.0,0.00023352,2]
[315136678,1708878741818,152.79,0.0002321,2]
[315136679,1708878742406,152.79,0.00023339,2]
[315136680,1708878742672,152.79,0.00023468,2]
[315136681,1708878785091,20009.43342086,0.0002,2]
[315136682,1708878815888,558.84,0.00022907,2]
[315136683,1708878821635,157.66,0.00022907,2]
[315136684,1708878845155,203.0,0.00022868,2]
[315136685,1708878864089,150.67,0.00022996,2]
[315136686,1708878864305,150.67,0.00023129,2]
[315136687,1708878864556,150.67,0.00023262,2]
[315136688,1708878864781,150.67,0.00023395,2]
[315136689,1708878903089,21118.04,0.00022786,2]
[315136690,1708878922801,1918.13,0.00022786,2]
[315136691,1708878987917,-529.72754677,0.00023523,30]
[315136692,1708878987942,-99470.27245323,0.00024,30]
[315136693,1708879027970,169.49,0.00022788,2]
[315136694,1708879129824,355.37,0.00022998,2]
[315136695,1708879171796,445.56,0.00020864,2]
[315136696,1708879171990,445.56,0.00023128,2]
[315136697,1708879192791,228.43,0.00022765,2]
[315136698,1708879257924,552.92,0.00022772,2]
[315136699,1708879274425,157.74,0.00022772,2]
[315136700,1708879312896,150.67,0.0002296,2]
[315136701,1708879313232,150.67,0.00023199,2]
[315136702,1708879313429,150.67,0.00023439,2]
[315136703,1708879325088,205.0,0.00022931,2]
[315136704,1708879406569,5203.0853,0.00023423,2]
[315136705,1708879480246,2156.43811281,0.000234,2]
[315136706,1708879582634,218.6495,0.0002343,2]
[315136707,1708879639413,401.0,0.00020841,2]
[315136708,1708879639777,401.0,0.00023105,2]
[315136709,1708879653103,190.36,0.00022751,2]
[315136711,1708879731894,-412.87820842,0.00023997,30]
[315136712,1708879731916,-169587.12179158,0.00024,30]
[315136713,1708879762200,500.0,0.000235,2]
[315136714,1708879828769,557.66,0.00022815,2]
[315136715,1708879831165,150.67,0.00023,2]
[315136723,1708879832234,-282.13316326,0.00023512,2]
[315136724,1708879832246,-40.48824935,0.00023512,2]
[315136725,1708879832255,-457.31254994,0.00023512,2]
[315136726,1708879833757,-508.47198714,0.00023512,2]
[315136727,1708879833819,-567.0516138,0.00023512,2]
[315136728,1708879833830,-623.60196193,0.00023512,2]
[315136729,1708879833840,-642.22672279,0.00023513,2]
[315136730,1708879833849,-300.0,0.00023522,2]
[315136731,1708879833858,-150.0,0.00023522,2]
[315136732,1708879833867,-765.3087843,0.00023522,2]
[315136733,1708879833877,-122.57560084,0.00023523,2]
[315136734,1708879833889,-768.59427376,0.00023523,2]
[315136735,1708879833901,-528.15,0.00023523,2]
[315136736,1708879833912,-146428.6801254,0.00023523,2]
[315136737,1708879833921,-3011.32399294,0.0002353,2]
[315136738,1708879833930,-150.0,0.00023562,2]
[315136739,1708879833939,-331.85,0.0002358,2]
[315136740,1708879833948,-152.79,0.00023597,2]
[315136741,1708879833958,-150.67,0.00023599,2]
[315136742,1708879833967,-52957.82168792,0.000236,2]
[315136743,1708879833976,-1735.34,0.000236,2]
[315136744,1708879833985,-3729.85,0.000236,2]
[315136745,1708879833995,-1363.3987563,0.000237,2]
[315136746,1708879834004,-156.84117781,0.000237,2]
[315136747,1708879834013,-152.79,0.00023726,2]
[315136748,1708879834022,-156.84117777,0.00023733,2]
[315136749,1708879834031,-156.84117777,0.00023767,2]
[315136750,1708879834043,-3399.33324714,0.00023798,2]
[315136751,1708879834053,-3399.3332471,0.00023798,2]
[315136752,1708879834062,-3399.3332471,0.00023798,2]
[315136753,1708879834072,-3399.3332471,0.00023798,2]
[315136754,1708879834081,-3399.3332471,0.00023798,2]
[315136755,1708879834091,-3399.3332471,0.00023798,2]
[315136756,1708879834100,-3399.3332471,0.00023798,2]
[315136757,1708879834109,-3399.3332471,0.00023798,2]
[315136758,1708879834118,-153.74602718,0.00023798,2]
[315136759,1708879834128,-153.74602715,0.00023798,2]
[315136760,1708879834137,-153.74602715,0.00023798,2]
[315136761,1708879834146,-153.74602715,0.00023798,2]
[315136762,1708879834155,-153.74602715,0.00023798,2]
[315136763,1708879834164,-153.74602715,0.00023798,2]
[315136764,1708879834173,-635.917789,0.00023799,2]
[315136765,1708879834183,-100000.0,0.000238,2]
[315136766,1708879834192,-245000.0,0.000238,2]
[315136767,1708879834201,-16753.0,0.000238,2]
[315136768,1708879834210,-156.84117777,0.000238,2]
[315136769,1708879834219,-200.0,0.00023808,2]
[315136770,1708879834228,-800.0,0.00023808,2]
[315136771,1708879834239,-200.0,0.00023808,2]
[315136772,1708879834248,-500.0,0.00023808,2]
[315136773,1708879834257,-153.74602715,0.00023833,2]
[315136774,1708879834266,-156.84117777,0.00023833,2]
[315136775,1708879834276,-3399.3332471,0.00023848,2]
[315136776,1708879834286,-152.79,0.00023855,2]
[315136777,1708879834294,-156.84117777,0.00023867,2]
[315136778,1708879834304,-270.9747367,0.00023898,2]
[315136779,1708879834314,-270.9747366,0.00023898,2]
[315136780,1708879834323,-270.9747366,0.00023898,2]
[315136781,1708879834332,-270.9747366,0.00023899,2]
[315136782,1708879834341,-270.9747366,0.00023899,2]
[315136783,1708879834350,-270.9747366,0.00023899,2]
[315136784,1708879834360,-270.9747366,0.00023899,2]
[315136785,1708879834369,-270.9747366,0.00023899,2]
[315136786,1708879834378,-270.9747366,0.00023899,2]
[315136787,1708879834387,-270.9747366,0.000239,2]
[315136788,1708879834396,-270.9747366,0.000239,2]
[315136789,1708879834405,-270.9747366,0.000239,2]
[315136790,1708879834414,-3399.3332471,0.000239,2]
[315136791,1708879834423,-438.63880108,0.000239,4]
[315136792,1708879834433,-156.84117777,0.000239,2]
[315136793,1708879834443,-153.74602715,0.000239,2]
[315136794,1708879834452,-152.79,0.00023984,2]
[315136795,1708879834461,-31640.50997131,0.00023994,2]
[315136796,1708879834470,-224245.55961477,0.00023998,4]
[315136797,1708879834480,-1063835.49558754,0.00023998,2]
[315136798,1708879834489,-155.16468914,0.00023998,2]
[315136799,1708879834498,-1283.70576469,0.00023999,2]
[315136800,1708879834508,-1000.0,0.00023999,2]
[315136801,1708879834518,-104000.45536205,0.00024,30]
[315136802,1708879835027,-327015.93229043,0.00024,30]
[315136803,1708879835041,-740.97,0.00024,30]
[315136804,1708879835065,-10572.04050948,0.00024,30]
[315136805,1708879835079,-917.62,0.00024,30]
[315136806,1708879835097,-5138.52358469,0.00024,30]
[315136807,1708879835113,-930.21519801,0.00024,30]
[315136808,1708879835127,-267.73832941,0.00024,30]
[315136809,1708879835141,-550.0,0.00024,30]
[315136810,1708879835160,-966.5769,0.00024,30]
[315136811,1708879835174,-2572.25816,0.00024,30]
[315136812,1708879835187,-2556.54491176,0.00024,30]
[315136813,1708879835201,-363.76455997,0.00024,30]
[315136814,1708879835214,-62921.16696349,0.00024,30]
[315136815,1708879835227,-15574.10736056,0.00024,30]
[315136816,1708879835241,-2997.08030588,0.00024,30]
[315136817,1708879835259,-520.1846515,0.00024,30]
[315136818,1708879835273,-528.57058112,0.00024,30]
[315136819,1708879835287,-10564.96733,0.00024,30]
[315136828,1708879838164,-384.90313745,0.00023999,2]
[315136829,1708879838177,-470.90070568,0.00023999,2]
[315136830,1708879838187,-83.03711332,0.00024,30]
[315136831,1708879838221,-2108.6683809,0.00024,30]
[315136832,1708879838278,-1849.01762945,0.00024,30]
[315136833,1708879838353,-979.41203722,0.00024,30]
[315136834,1708879838366,-990.58022827,0.00024,30]
[315136835,1708879838448,-722.01999318,0.00024,30]
[315136848,1708879840745,-8740.34106018,0.00024,30]
[315136849,1708879840757,-5470.75169474,0.00024,30]
[315136850,1708879840769,-1081.4394792,0.00024,30]
[315136851,1708879840802,-244631.83267411,0.00024,30]
[315136852,1708879840860,-598.44913979,0.00024,30]
[315136853,1708879840871,-318.5,0.00024,30]
[315136854,1708879841682,-44497.76461669,0.00024,30]
[315136860,1708879842729,151.49324916,0.00023422,2]
[315136867,1708879843329,-570.53589542,0.00023999,2]
[315136868,1708879843338,-795389.93176621,0.00024,30]
[315136869,1708879843428,-3809.44008766,0.00024,30]
[315136870,1708879843487,-1865.90165154,0.00024,30]
[315136871,1708879843499,-5250.76761112,0.00024,30]
[315136872,1708879843511,-200700.45973324,0.00024,30]
[315136903,1708879846324,-13655.257,0.00024,30]
[315136906,1708879846722,-29102.945,0.00024,30]
[315136907,1708879846839,-296.9414077,0.00024,30]
[315136912,1708879847628,151.49324911,0.00023456,2]
[315136913,1708879852765,151.49324911,0.0002349,2]
[315136914,1708879857155,500.0,0.0002335,2]
[315136915,1708879868727,23900.0,0.00023295,2]
[315136916,1708879871764,2108.7873,0.00023423,2]
[315136917,1708879877781,157.65,0.0002321,2]
[315136918,1708879889635,165.2,0.00023171,2]
[315136919,1708879913038,151.9065987,0.00021,4]
[315136920,1708879913766,465.8175,0.000235,2]
[315136921,1708879931053,472.9975,0.00023423,2]
[315136922,1708879954835,2000.0,0.00022975,2]
[315136923,1708879957580,200.0,0.00022969,2]
[315136925,1708880013963,205.0,0.00023112,2]
[315136926,1708880020877,1500.0,0.000235,2]
[315136928,1708880049676,2433.73632519,0.0002,2]
[315136929,1708880054247,115918.57468857,0.000235,2]
[315136930,1708880065611,215.82244978,0.000137,2]
[315136932,1708880066333,156.55221049,0.00022,2]
[315136933,1708880066683,207.04306826,0.0001,2]
[315136934,1708880070172,77279.04979238,0.000235,2]
[315136935,1708880096164,64399.20816032,0.000235,2]
[315136936,1708880109233,400.44,0.00020902,2]
[315136937,1708880109698,400.44,0.00023166,2]
[315136938,1708880116128,64399.20816032,0.000235,2]
[315136939,1708880136139,33551.98745153,0.000235,2]
[315136941,1708880156148,33551.98745153,0.000235,2]
[315136942,1708880172147,34926.84323957,0.000235,2]
[315136943,1708880177553,250.0,0.0002282,2]
[315136944,1708880188183,34926.84323957,0.000235,2]
[315136945,1708880189351,11641.94,0.00022821,2]
[315136946,1708880202890,-170000.0,0.00024,30]
[315136947,1708880204170,34926.84323957,0.00022821,2]
[315136948,1708880224178,34926.84323957,0.00022821,2]
[315136949,1708880233444,2198.5875,0.0002343,2]
[315136950,1708880233846,184.34,0.00022803,2]
[315136951,1708880248185,34926.84323957,0.00022821,2]
[315136952,1708880268183,34926.84323957,0.00022803,2]
[315136953,1708880274071,553.87,0.00022807,2]
[315136954,1708880288199,34926.84323957,0.00022803,2]
[315136955,1708880297410,612.96,0.00022807,2]
[315136956,1708880310212,34926.84323957,0.00022803,2]
[315136958,1708880328256,1866.1067006,0.00022807,2]
[315136959,1708880374130,164.55,0.0002298,2]
[315136960,1708880403277,151.67,0.00022795,2]
[315136961,1708880403522,151.67,0.00023049,2]
[315136962,1708880403760,151.67,0.00023302,2]
[315136963,1708880447927,404.83725258,0.00022603,2]
[315136964,1708880465934,404.83725258,0.00022603,2]
[315136965,1708880485924,404.83725258,0.00021925,2]
[315136966,1708880501924,339.17344007,0.00021925,2]
[315136967,1708880517876,975.99648716,0.000235,2]
[315136968,1708880592995,642.22672279,0.000235,2]
[315136969,1708880597384,384.78,0.00020875,2]
[315136970,1708880597721,384.78,0.00023139,2]
[315136971,1708880607716,1092.43732782,0.000235,2]
[315136972,1708880645357,154.39616214,0.00023,2]
[315136973,1708880669509,642.22672279,0.000235,2]
[315136974,1708880674460,205.0,0.00022956,2]
[315136975,1708880679939,728.29155188,0.000235,2]
[315136976,1708880744017,642.22672279,0.000235,2]
[315136977,1708880753322,510.8,0.00022817,2]
[315136978,1708880756457,606.90962657,0.000235,2]
[315136979,1708880757656,1167.734117,0.0002,2]
[315136980,1708880778886,556.9,0.00022827,2]
[315136981,1708880814540,642.22672279,0.000235,2]
[315136982,1708880840980,316.19991544,0.000235,2]
[315136983,1708880848193,518.83,0.0002338,2]
[315136984,1708880871032,164.55,0.00022966,2]
[315136985,1708880897059,642.22672279,0.000235,2]
[315136992,1708880965704,18500.0,0.0002,2]
[315136993,1708880969576,642.22672279,0.000235,2]
[315136996,1708880985830,191.9,0.00016712,2]
[315137003,1708881031443,-766.64004558,0.00023501,2]
[315137004,1708881031453,-151.67,0.00023555,2]
[315137005,1708881031462,-150.0,0.00023584,2]
[315137006,1708881031471,-152.16870947,0.00023593,2]
[315137007,1708881031481,-1016.0,0.000236,2]
[315137008,1708881031491,-152.16870939,0.00023619,2]
[315137009,1708881031500,-5425.17,0.00023626,2]
[315137010,1708881031509,-152.16870939,0.00023644,2]
[315137011,1708881031519,-152.16870939,0.0002367,2]
[315137012,1708881031528,-300.0,0.00023694,2]
[315137013,1708881031538,-152.16870939,0.00023695,2]
[315137014,1708881031547,-499.99,0.00023695,2]
[315137015,1708881031556,-2167.84273822,0.00023695,2]
[315137016,1708881031574,-1006.25190767,0.00023695,2]
[315137017,1708881031585,-542.61296798,0.00023695,2]
[315137018,1708881031597,-305.25403662,0.00023695,2]
[315137019,1708881031618,-2036.68632375,0.00023695,2]
[315137020,1708881031629,-1995.02676161,0.00023695,2]
[315137021,1708881031641,-1472.97,0.00023695,2]
[315137022,1708881031652,-818.26057678,0.00023695,2]
[315137023,1708881031663,-485.80288671,0.00023695,2]
[315137024,1708881031679,-6669.8940524,0.00023695,2]
[315137025,1708881031690,-663.95028671,0.00023695,2]
[315137026,1708881031703,-5817.63583269,0.00023695,2]
[315137027,1708881031713,-1428.63103375,0.00023695,2]
[315137028,1708881031737,-6221.90059511,0.00023695,2]
[315137029,1708881031747,-999.99,0.00023695,2]
[315137030,1708881031756,-152.16870939,0.00023721,2]
[315137031,1708881031766,-150.0,0.00023726,2]
[315137032,1708881031779,-300.0,0.00023726,2]
[315137033,1708881031790,-3198.93543951,0.00023727,2]
[315137036,1708881031812,-22880.16232058,0.00023727,2]
[315137038,1708881031822,-553.58,0.00023728,2]
[315137040,1708881031831,-299.99,0.00023728,7]
[315137042,1708881031841,-152.16870939,0.00023747,2]
[315137044,1708881031853,-152.16870939,0.00023772,2]
[315137047,1708881031863,-3692.3724,0.00023779,2]
[315137048,1708881031873,-734.7819,0.00023779,2]
[315137050,1708881031882,-699.3334,0.00023779,2]
[315137053,1708881031891,-1000.0,0.00023779,2]
[315137054,1708881031901,-20773.9584537,0.00023779,2]
[315137057,1708881031916,-28786.0415463,0.00023779,2]
[315137059,1708881031925,-2373.9782,0.00023779,2]
[315137061,1708881031935,-150.17438691,0.0002378,2]
[315137063,1708881031945,-197.52749939,0.0002378,2]
[315137065,1708881031955,-806.97261211,0.00023782,2]
[315137066,1708881031964,-1000.0,0.00023797,5]
[315137067,1708881031973,-197.52749934,0.00023797,2]
[315137068,1708881031983,-152.16870939,0.00023798,2]
[315137069,1708881031992,-1229.85267349,0.00023798,2]
[315137070,1708881032002,-1229.85267342,0.00023798,2]
[315137071,1708881032011,-1000.0,0.00023799,5]
[315137072,1708881032021,-3436.0,0.000238,2]
[315137073,1708881032030,-155.90165702,0.000238,2]
[315137074,1708881032041,-1229.85267342,0.00023807,2]
[315137075,1708881032052,-200.0,0.00023808,2]
[315137076,1708881032061,-500.0,0.00023808,2]
[315137077,1708881032070,-151.67,0.00023809,2]
[315137078,1708881032080,-197.52749934,0.00023814,2]
[315137079,1708881032089,-1229.85267342,0.0002382,2]
[315137080,1708881032098,-1500.0,0.00023821,2]
[315137081,1708881032108,-152.16870939,0.00023823,2]
[315137082,1708881032117,-197.52749934,0.00023831,2]
[315137083,1708881032127,-1229.85267342,0.00023833,2]
[315137084,1708881032136,-150.1743869,0.0002384,2]
[315137085,1708881032145,-1229.85267342,0.00023847,2]
[315137086,1708881032154,-197.52749934,0.00023849,2]
[315137087,1708881032164,-152.16870939,0.00023849,2]
[315137088,1708881032174,-1229.85267342,0.0002386,2]
[315137089,1708881032183,-1229.85267342,0.00023873,2]
[315137090,1708881032193,-152.16870939,0.00023874,2]
[315137091,1708881032202,-94796.15081559,0.00023879,2]
[315137092,1708881032214,-13847.08824381,0.00023879,2]
[315137093,1708881032225,-222444.43002324,0.00023879,2]
[315137094,1708881032234,-20646.38077007,0.0002388,3]
[315137095,1708881032328,-278.83839383,0.0002388,3]
[315137096,1708881032345,-1702.13190077,0.0002388,3]
[315137097,1708881032358,-1137.75498811,0.0002388,3]
[315137100,1708881037495,-197.52749934,0.00023866,2]
[315137101,1708881037505,-80.51889476,0.0002388,3]
[315137102,1708881037516,-998.19071424,0.0002388,3]
[315137103,1708881037579,-821.01670828,0.0002388,3]
[315137117,1708881039925,-613.35588142,0.0002388,3]
[315137118,1708881040787,-1278.95858592,0.00023828,2]
[315137119,1708881040796,-2576.58141408,0.0002388,3]
[315137124,1708881042379,-236.3882595,0.00023781,7]
[315137125,1708881042388,-901.18663661,0.00023781,7]
[315137126,1708881042591,-508.01,0.00023781,7]
[315137127,1708881042648,-4298.76969513,0.00023781,7]
[315137128,1708881042660,-25839.65348304,0.00023781,7]
[315137141,1708881046397,-908.49725702,0.00023781,7]
[315137142,1708881046407,-864.70215854,0.000238,2]
[315137143,1708881046417,-17030.57820801,0.0002388,3]
[315137144,1708881046426,-197.52749934,0.00023883,2]
[315137145,1708881046436,-1229.85267342,0.00023887,2]
[315137146,1708881046446,-170.12014203,0.0002389,2]
[315137147,1708881046455,-5844.725,0.00023899,2]
[315137148,1708881046465,-171.5781,0.00023899,2]
[315137149,1708881046475,-34017.8278,0.00023899,2]
[315137150,1708881046485,-500.0,0.000239,2]
[315137151,1708881046495,-2226.95402993,0.000239,2]